bitfinex/quotes_BTCUSD_20220213
["timestamp","ask_amount","ask_price","bid_price","bid_amount"]
[1644750722490,0.00390997,42583.0,42582.0,0.58949547]
[1644750727443,0.06576144,42588.0,42583.0,0.041144]
[1644750727741,0.0652768,42588.0,42582.0,0.2530675]
[1644750727942,0.12450245,42588.0,42582.0,0.2530675]
[1644750728341,0.17450245,42588.0,42582.0,0.2530675]
[1644750728587,0.17450245,42588.0,42583.0,0.330679]
[1644750728989,0.1740178,42588.0,42583.0,0.330679]
[1644750729191,0.17450245,42588.0,42582.0,0.2530675]
[1644750729392,0.17450245,42588.0,42583.0,0.330679]
[1644750729588,0.12450245,42588.0,42582.0,0.2530675]
[1644750729788,0.17450245,42588.0,42582.0,0.2530675]
[1644750729989,0.06576145,42588.0,42584.0,0.330679]
[1644750730189,0.0652768,42588.0,42583.0,0.330679]
[1644750730390,0.06576145,42588.0,42583.0,0.330679]
[1644750730792,0.11576145,42588.0,42582.0,0.2530675]
[1644750730989,0.11576145,42588.0,42582.0,0.00306101]
[1644750731390,0.1152768,42588.0,42582.0,0.00306101]
[1644750731689,0.11576145,42588.0,42582.0,0.00306101]
[1644750732339,0.17450245,42588.0,42582.0,0.00306101]
[1644750732538,0.1740178,42588.0,42585.0,0.00570277]
[1644750732739,0.17450245,42588.0,42585.0,0.00570277]
[1644750732937,0.22450245,42588.0,42585.0,0.00570277]
[1644750733137,0.17450245,42588.0,42585.0,0.00570277]
[1644750733739,0.1740178,42588.0,42585.0,0.00570277]
[1644750735839,0.1740178,42588.0,42585.0,0.00070277]
[1644750737294,0.1740178,42588.0,42587.0,0.00305011]
[1644750742343,0.17248676,42588.0,42584.0,0.00305744]
[1644750742543,0.22248676,42588.0,42584.0,0.00305744]
[1644750743590,0.22297141,42588.0,42584.0,0.00305744]
[1644750744489,0.22248676,42588.0,42584.0,0.00305744]
[1644750744691,0.22297141,42588.0,42584.0,0.00305744]
[1644750744888,0.22286034,42588.0,42584.0,0.00305744]
[1644750745290,0.51420309,42588.0,42584.0,0.00305744]
[1644750745493,0.94126603,42588.0,42584.0,0.00305744]
[1644750745695,1.04078138,42588.0,42584.0,0.00305744]
[1644750745892,0.15993109,42587.0,42584.0,0.00305744]
[1644750747244,0.16230856,42587.0,42584.0,0.00608157]
[1644750752594,0.16230856,42587.0,42584.0,0.00304681]
[1644750753890,0.16230856,42587.0,42584.0,0.00294815]
[1644750762096,0.05,42586.0,42584.0,0.00294815]
[1644750762353,0.30206422,42585.0,42584.0,0.00294815]
[1644750762752,0.40206422,42585.0,42584.0,0.00294815]
[1644750765055,0.83198897,42585.0,42584.0,0.00294815]
[1644750765256,0.83198897,42585.0,42581.0,0.06353746]
[1644750765257,0.00286934,42582.0,42581.0,0.06353746]
[1644750765456,0.45106834,42582.0,42581.0,0.06353746]
[1644750765761,0.63816042,42582.0,42581.0,0.06353746]
[1644750768002,1.13816042,42582.0,42581.0,0.06353746]
[1644750768503,1.29809151,42582.0,42581.0,0.06353746]
[1644750770145,0.79809151,42582.0,42581.0,0.06353746]
[1644750770544,0.63816042,42582.0,42581.0,0.06353746]
[1644750771347,0.32038934,42582.0,42581.0,0.06353746]
[1644750771745,0.22038934,42582.0,42581.0,0.06353746]
[1644750771946,0.32038934,42582.0,42581.0,0.06353746]
[1644750772145,0.32460497,42582.0,42581.0,0.06353746]
[1644750773046,0.20708497,42582.0,42581.0,0.06353746]
[1644750773247,0.00708497,42582.0,42581.0,0.06353746]
[1644750773893,0.00708497,42582.0,42581.0,0.06328552]
[1644750774096,0.00708497,42582.0,42581.0,0.06353774]
[1644750776794,0.00708497,42582.0,42581.0,0.06328552]
[1644750781994,0.00421563,42582.0,42581.0,0.06328552]
[1644750786148,0.00421563,42582.0,42581.0,0.06321956]
[1644750789496,0.33489463,42582.0,42581.0,0.06321956]
[1644750789696,0.00421563,42582.0,42581.0,0.06321956]
[1644750789896,0.10421563,42582.0,42581.0,0.06321956]
[1644750790297,0.15421563,42582.0,42581.0,0.06321956]
[1644750790898,0.05421563,42582.0,42581.0,0.06321956]
[1644750791197,0.00421563,42582.0,42581.0,0.06321956]
[1644750797297,0.33489463,42582.0,42581.0,0.06321956]
[1644750797499,0.00421563,42582.0,42581.0,0.06321956]
[1644750797700,0.10421563,42582.0,42581.0,0.06321956]
[1644750798702,0.00421563,42582.0,42581.0,0.06321956]
[1644750800446,0.33489463,42582.0,42581.0,0.06321956]
[1644750800645,0.10421563,42582.0,42581.0,0.06321956]
[1644750801846,0.00421563,42582.0,42581.0,0.06321956]
[1644750806700,0.680679,42581.0,42580.0,0.14317947]
[1644750806898,0.85951558,42581.0,42580.0,0.14292725]
[1644750807102,0.76944667,42581.0,42580.0,0.14292725]
[1644750807345,0.60951558,42581.0,42580.0,0.14292725]
[1644750809147,0.61892158,42581.0,42580.0,0.14292725]
[1644750809347,0.60951558,42581.0,42580.0,0.14292725]
[1644750810749,0.317515,42581.0,42580.0,0.14292725]
[1644750811000,0.317515,42581.0,42580.0,0.14317947]
[1644750811199,0.217515,42581.0,42580.0,0.14292725]
[1644750811400,0.317515,42581.0,42580.0,0.14292725]
[1644750812503,0.52516709,42581.0,42580.0,0.14292725]
[1644750812801,0.62516709,42581.0,42580.0,0.14292725]
[1644750813002,0.3227449,42581.0,42580.0,0.14292725]
[1644750815057,0.2227449,42581.0,42580.0,0.14292725]
[1644750815254,0.35878672,42581.0,42580.0,0.14292725]
[1644750815453,0.65212546,42581.0,42580.0,0.14292725]
[1644750816856,0.66153146,42581.0,42580.0,0.14292725]
[1644750817256,0.3227449,42581.0,42580.0,0.14292725]
[1644750819195,0.2227449,42581.0,42580.0,0.14292725]
[1644750819393,0.3227449,42581.0,42580.0,0.14292725]
[1644750820298,0.2227449,42581.0,42580.0,0.14292725]
[1644750820495,0.3227449,42581.0,42580.0,0.14292725]
[1644750820897,0.3321499,42581.0,42580.0,0.14292725]
[1644750821696,0.2321499,42581.0,42580.0,0.14292725]
[1644750821896,0.3321499,42581.0,42580.0,0.14292725]
[1644750822948,0.3321499,42581.0,42580.0,0.14317947]
[1644750822949,0.2321499,42581.0,42580.0,0.14317947]
[1644750823145,0.3321499,42581.0,42580.0,0.14292725]
[1644750824147,0.3321499,42581.0,42580.0,0.14317947]
[1644750825653,0.2321499,42581.0,42580.0,0.14317947]
[1644750826107,0.2227449,42581.0,42580.0,0.14317947]
[1644750827908,0.2227449,42581.0,42580.0,0.14292725]
[1644750828311,0.1727449,42581.0,42580.0,0.14292725]
[1644750828510,0.1821499,42581.0,42580.0,0.14292725]
[1644750829008,0.2227449,42581.0,42580.0,0.14292725]
[1644750830657,0.2227449,42581.0,42580.0,0.14284511]
[1644750830862,0.62258255,42581.0,42580.0,0.14284511]
[1644750831260,0.72258255,42581.0,42580.0,0.14284511]
[1644750831662,0.3227449,42581.0,42580.0,0.14284511]
[1644750832461,0.2321499,42581.0,42580.0,0.14284511]
[1644750832660,0.3321499,42581.0,42580.0,0.14284511]
[1644750832859,0.3227449,42581.0,42580.0,0.14284511]
[1644750833697,0.2227449,42581.0,42580.0,0.14284511]
[1644750833898,0.3227449,42581.0,42580.0,0.14284511]
[1644750834897,0.2227449,42581.0,42580.0,0.14284511]
[1644750835099,0.3227449,42581.0,42580.0,0.14284511]
[1644750836898,0.61446979,42581.0,42580.0,0.14284511]
[1644750837347,0.61446979,42581.0,42580.0,0.02288539]
[1644750840150,0.62387479,42581.0,42580.0,0.02288539]
[1644750840552,0.61446979,42581.0,42580.0,0.02288539]
[1644750843202,0.65257756,42581.0,42580.0,0.02288539]
[1644750843500,0.61446979,42581.0,42580.0,0.02288539]
[1644750844102,0.62387579,42581.0,42580.0,0.02288539]
[1644750844502,0.61446979,42581.0,42580.0,0.02288539]
[1644750846848,0.22978568,42579.0,42578.0,0.0004277]
[1644750847247,0.32978568,42579.0,42578.0,0.0004277]
[1644750847648,0.64847377,42579.0,42578.0,0.0004277]
[1644750847848,0.64847377,42579.0,42573.0,0.330679]
[1644750848049,0.48854268,42579.0,42576.0,0.00041622]
[1644750848696,0.48847625,42579.0,42576.0,0.00041622]
[1644750848897,0.27939113,42579.0,42576.0,0.00041622]
[1644750849104,0.17939113,42579.0,42573.0,0.330679]
[1644750849297,0.17939113,42579.0,42575.0,0.00041598]
[1644750849997,0.49790446,42579.0,42575.0,0.00041598]
[1644750850198,0.49790446,42579.0,42573.0,0.330679]
[1644750850399,0.59790446,42579.0,42575.0,0.00041598]
[1644750850799,0.59724009,42579.0,42575.0,0.00041598]
[1644750850997,0.88773802,42579.0,42575.0,0.00041598]
[1644750851399,1.04766911,42579.0,42573.0,0.330679]
[1644750851609,0.60664609,42579.0,42575.0,0.00041767]
[1644750851801,0.15993109,42578.0,42575.0,0.00041767]
[1644750852450,0.00337235,42578.0,42575.0,0.00041767]
[1644750852651,0.00337235,42578.0,42573.0,0.330679]
[1644750852850,0.00337235,42578.0,42574.0,0.00041808]
[1644750853651,0.00337235,42578.0,42575.0,0.330679]
[1644750853851,0.00337235,42578.0,42574.0,0.330679]
[1644750854051,0.00337235,42578.0,42574.0,0.00041808]
[1644750855053,0.00337235,42578.0,42573.0,0.330679]
[1644750855253,0.00337235,42578.0,42574.0,0.00041782]
[1644750855651,0.00337235,42578.0,42575.0,0.330679]
[1644750855851,0.00337235,42578.0,42574.0,0.33109682]
[1644750856099,0.00337235,42578.0,42574.0,0.00041782]
[1644750856299,0.00337235,42578.0,42574.0,0.00025222]
[1644750856497,0.00337235,42578.0,42574.0,0.00041774]
[1644750857497,0.00337235,42578.0,42573.0,0.330679]
[1644750857698,0.00337235,42578.0,42574.0,0.00041774]
[1644750858301,0.00337235,42578.0,42574.0,0.00066996]
[1644750858701,0.00337235,42578.0,42575.0,0.330664]
[1644750858901,0.00337235,42578.0,42574.0,0.00041778]
[1644750859101,0.40321596,42578.0,42574.0,0.00067]
[1644750859301,0.51262196,42578.0,42575.0,0.330679]
[1644750859505,0.51262196,42578.0,42574.0,0.00041778]
[1644750859748,0.41262196,42578.0,42574.0,0.00041778]
[1644750859947,0.41262196,42578.0,42573.0,0.330679]
[1644750860146,0.41262196,42578.0,42574.0,0.00041779]
[1644750861146,0.41262196,42578.0,42573.0,0.330679]
[1644750861347,0.01277835,42578.0,42575.0,0.041233]
[1644750861546,0.01277835,42578.0,42574.0,0.24797892]
[1644750861547,0.01277835,42578.0,42574.0,0.00041779]
[1644750861749,0.01277835,42578.0,42575.0,0.041233]
[1644750861947,0.01277835,42578.0,42574.0,0.33109679]
[1644750861948,0.41262196,42578.0,42574.0,0.33109679]
[1644750862151,0.01277835,42578.0,42574.0,0.00041779]
[1644750862348,0.01277835,42578.0,42575.0,0.330679]
[1644750862647,0.01277835,42578.0,42574.0,0.00025222]
[1644750862648,0.01277835,42578.0,42574.0,0.33109679]
[1644750862849,0.41262196,42578.0,42574.0,0.00041779]
[1644750863048,0.41262196,42578.0,42574.0,0.00067001]
[1644750863349,0.41262196,42578.0,42574.0,0.00041779]
[1644750863601,0.39984361,42577.0,42574.0,0.00041778]
[1644750863801,0.41262196,42578.0,42574.0,0.00067]
[1644750864200,0.41262196,42578.0,42575.0,0.330679]
[1644750864400,0.41262196,42578.0,42574.0,0.00041778]
[1644750864600,0.40321596,42578.0,42572.0,0.00025222]
[1644750864804,0.40321596,42578.0,42574.0,0.00041778]
[1644750865900,0.00337235,42578.0,42573.0,0.330679]
[1644750866102,0.00337235,42578.0,42574.0,0.00041778]
[1644750866304,0.00337235,42578.0,42574.0,0.33109678]
[1644750867104,0.01277835,42578.0,42573.0,0.330679]
[1644750867355,0.00196257,42576.0,42574.0,0.57852754]
[1644750867550,0.00196257,42576.0,42575.0,0.29314488]
[1644750867750,0.00196257,42576.0,42574.0,0.00041778]
[1644750867952,0.00196257,42576.0,42575.0,0.04148522]
[1644750868155,0.00196257,42576.0,42574.0,0.33108878]
[1644750868351,0.00196257,42576.0,42573.0,0.041235]
[1644750868559,0.00196257,42576.0,42575.0,0.330664]
[1644750868752,0.00196257,42576.0,42574.0,0.04148622]
[1644750869050,0.00196257,42576.0,42575.0,0.00025222]
[1644750869252,0.00196257,42576.0,42574.0,0.04148622]
[1644750869652,0.00196257,42576.0,42574.0,0.041234]
[1644750869957,0.00196257,42576.0,42575.0,0.041233]
[1644750870155,0.00196257,42576.0,42575.0,0.00025222]
[1644750870354,0.00196257,42576.0,42574.0,0.33093122]
[1644750870654,0.00196257,42576.0,42574.0,0.330679]
[1644750870854,0.00196257,42576.0,42573.0,0.04164579]
[1644750871111,0.00196257,42576.0,42574.0,0.24635566]
[1644750871410,0.00196257,42576.0,42575.0,0.330671]
[1644750871611,0.00196257,42576.0,42574.0,0.04147922]
[1644750872009,0.00196257,42576.0,42574.0,0.041227]
[1644750872211,0.00196257,42576.0,42574.0,0.00025222]
[1644750872411,0.00178551,42576.0,42574.0,0.330672]
[1644750872613,0.00178551,42576.0,42574.0,0.00025222]
[1644750872809,0.00178551,42576.0,42574.0,0.041234]
[1644750873012,0.00178551,42576.0,42574.0,0.00025222]
[1644750873210,0.00178551,42576.0,42573.0,0.33109679]
[1644750873713,0.00178551,42576.0,42574.0,0.25455585]
[1644750873911,0.00178551,42576.0,42574.0,0.25305238]
[1644750874112,0.00178551,42576.0,42574.0,0.58372438]
[1644750874411,0.00178551,42576.0,42574.0,0.33092422]
[1644750875651,0.00178551,42576.0,42574.0,0.330672]
[1644750875851,0.00178551,42576.0,42574.0,0.00025222]
[1644750876052,0.00178551,42576.0,42574.0,0.04115996]
[1644750876353,0.00178551,42576.0,42574.0,0.00025222]
[1644750876551,0.00178551,42576.0,42573.0,0.33109679]
[1644750876752,0.00178551,42576.0,42574.0,0.2472281]
[1644750877052,0.00178551,42576.0,42574.0,0.57912237]
[1644750877352,0.00183504,42575.0,42574.0,0.33092322]
[1644750878153,0.00183504,42575.0,42573.0,0.041154]
[1644750878355,0.06059304,42575.0,42573.0,0.041154]
[1644750878604,0.06059304,42575.0,42573.0,0.04140622]
[1644750879204,0.06059304,42575.0,42573.0,0.041154]
[1644750879403,0.06059304,42575.0,42573.0,0.04140622]
[1644750880206,0.06059304,42575.0,42574.0,0.24716671]
[1644750880409,0.06059304,42575.0,42574.0,0.57783871]
[1644750880604,0.06059304,42575.0,42573.0,0.04140622]
[1644750881603,0.06059304,42575.0,42573.0,0.041154]
[1644750881806,0.06059304,42575.0,42573.0,0.04140622]
[1644750882956,0.06059304,42575.0,42573.0,0.041154]
[1644750883152,0.06059304,42575.0,42573.0,0.04140622]
[1644750884154,0.06059304,42575.0,42573.0,0.041154]
[1644750884358,0.06059304,42575.0,42573.0,0.04140622]
[1644750885461,0.06059304,42575.0,42573.0,0.041154]
[1644750886702,0.06059304,42575.0,42573.0,0.04140622]
[1644750887801,0.06059304,42575.0,42573.0,0.041154]
[1644750888005,0.06059304,42575.0,42573.0,0.04140622]
[1644750889006,0.06059304,42575.0,42573.0,0.041154]
[1644750889201,0.06059304,42575.0,42573.0,0.04140622]
[1644750890057,0.06059304,42575.0,42573.0,0.041154]
[1644750890258,0.06059304,42575.0,42573.0,0.04140622]
[1644750891262,0.06059304,42575.0,42573.0,0.041154]
[1644750891460,0.06059304,42575.0,42573.0,0.04140622]
[1644750892563,0.06059304,42575.0,42573.0,0.041154]
[1644750892760,0.06059304,42575.0,42573.0,0.04140622]
[1644750894808,0.06059304,42575.0,42573.0,0.041154]
[1644750895006,0.06059304,42575.0,42574.0,0.330672]
[1644750895204,0.06059304,42575.0,42574.0,0.00025222]
[1644750895405,0.06059304,42575.0,42573.0,0.04140622]
[1644750896005,0.06059304,42575.0,42573.0,0.041154]
[1644750896207,0.06059304,42575.0,42573.0,0.04140622]
[1644750897264,0.06059304,42575.0,42573.0,0.041154]
[1644750897466,0.06059304,42575.0,42574.0,0.24411573]
[1644750897664,0.06059304,42575.0,42574.0,0.57710622]
[1644750897863,0.06059304,42575.0,42573.0,0.04140622]
[1644750898064,0.06059304,42575.0,42573.0,0.041154]
[1644750898264,0.06059304,42575.0,42574.0,0.330672]
[1644750898469,0.06059304,42575.0,42574.0,0.58773429]
[1644750898664,0.06059304,42575.0,42574.0,0.330672]
[1644750898864,0.06059304,42575.0,42573.0,0.04140622]
[1644750899065,0.06059304,42575.0,42573.0,0.041154]
[1644750899266,0.06059304,42575.0,42573.0,0.04140622]
[1644750899765,0.06059304,42575.0,42573.0,0.041154]
[1644750899965,0.06059304,42575.0,42573.0,0.04140622]
[1644750900368,0.00183504,42575.0,42574.0,0.57817978]
[1644750900566,0.00183504,42575.0,42574.0,0.33092422]
[1644750900765,0.00183504,42575.0,42574.0,0.330672]
[1644750901013,0.00183504,42575.0,42574.0,0.3305858]
[1644750901201,0.00183504,42575.0,42573.0,0.04140622]
[1644750901401,0.00183504,42575.0,42573.0,0.041154]
[1644750901601,0.06059304,42575.0,42573.0,0.04140622]
[1644750902003,0.06059304,42575.0,42574.0,0.24548286]
[1644750902203,0.06059304,42575.0,42574.0,0.33083822]
[1644750902403,0.06059304,42575.0,42573.0,0.04140622]
[1644750902603,0.06059304,42575.0,42574.0,0.330586]
[1644750902804,0.06059304,42575.0,42573.0,0.04140622]
[1644750903004,0.06059304,42575.0,42573.0,0.041154]
[1644750903204,0.06059304,42575.0,42573.0,0.04140622]
[1644750904504,0.06059304,42575.0,42573.0,0.041154]
[1644750904751,0.06059304,42575.0,42573.0,0.04140622]
[1644750905754,0.06059304,42575.0,42573.0,0.041154]
[1644750905953,0.06059304,42575.0,42573.0,0.04140622]
[1644750906156,0.06059304,42575.0,42574.0,0.330586]
[1644750906351,0.06059304,42575.0,42574.0,0.00025222]
[1644750906553,0.06059304,42575.0,42573.0,0.04140622]
[1644750906953,0.06059304,42575.0,42573.0,0.041154]
[1644750907156,0.06059304,42575.0,42574.0,0.57454075]
[1644750907355,0.06059304,42575.0,42574.0,0.58611344]
[1644750907555,0.00183504,42575.0,42574.0,0.58586122]
[1644750908505,0.00183504,42575.0,42573.0,0.04140622]
[1644750908711,0.00183504,42575.0,42574.0,0.59456269]
[1644750909107,0.00183504,42575.0,42574.0,0.70094882]
[1644750909306,0.00183504,42575.0,42574.0,0.80733495]
[1644750911108,0.00183504,42575.0,42574.0,0.80710495]
[1644750912249,0.00183504,42575.0,42574.0,0.54335826]
[1644750917117,0.00183504,42575.0,42574.0,0.21277226]
[1644750917820,0.00183504,42575.0,42574.0,0.21302448]
[1644750918220,0.00183504,42575.0,42574.0,0.21277226]
[1644750921864,0.00183504,42575.0,42574.0,0.54350026]
[1644750922265,0.0017618,42575.0,42574.0,0.54350026]
[1644750922466,0.0017618,42575.0,42574.0,0.21277226]
[1644750922666,0.00113601,42575.0,42574.0,0.21277226]
[1644750923805,0.00113601,42575.0,42574.0,0.54375248]
[1644750924209,0.00113601,42575.0,42574.0,0.54350026]
[1644750925612,0.00182772,42577.0,42575.0,0.041009]
[1644750925810,0.00182772,42577.0,42575.0,0.330728]
[1644750926309,0.00182772,42577.0,42576.0,0.21277226]
[1644750926508,0.01123272,42577.0,42576.0,0.21277226]
[1644750926909,0.01111538,42577.0,42576.0,0.21277226]
[1644750927552,0.00171038,42577.0,42576.0,0.21277226]
[1644750928056,0.00171038,42577.0,42576.0,0.46310351]
[1644750928856,0.00171038,42577.0,42576.0,0.79383151]
[1644750929054,0.00171038,42577.0,42576.0,0.46310351]
[1644750929754,0.00171038,42577.0,42576.0,0.21277226]
[1644750930057,0.00171038,42577.0,42576.0,0.40802157]
[1644750930455,0.068157,42579.0,42576.0,0.40802157]
[1644750930654,0.068157,42579.0,42577.0,0.40869816]
[1644750930854,0.058752,42579.0,42577.0,0.40869816]
[1644750931507,0.058752,42579.0,42578.0,0.25375926]
[1644750932307,0.058752,42579.0,42578.0,0.54350026]
[1644750933309,0.058752,42579.0,42578.0,0.21277226]
[1644750936162,0.058752,42579.0,42578.0,0.2758491]
[1644750936363,0.058747,42583.0,42578.0,0.53744232]
[1644750936762,0.058747,42583.0,42578.0,0.32467006]
[1644750936962,0.058747,42583.0,42580.0,0.21277226]
[1644750942108,0.058747,42583.0,42579.0,0.330728]
[1644750942362,0.00183248,42582.0,42580.0,0.10638613]
[1644750942956,0.00183248,42582.0,42581.0,0.330728]
[1644750943157,0.00183248,42582.0,42581.0,0.55327239]
[1644750944153,0.00183248,42582.0,42581.0,0.330728]
[1644750945060,0.00183248,42582.0,42581.0,0.5469007]
[1644750945855,0.00183248,42582.0,42581.0,0.330728]
[1644750947619,0.00183248,42582.0,42581.0,0.43711413]
[1644750947620,0.00142964,42582.0,42581.0,0.43711413]
[1644750947819,0.00142964,42582.0,42581.0,0.21277226]
[1644750951860,0.00142964,42582.0,42581.0,0.54350026]
[1644750953620,0.00142964,42582.0,42581.0,0.21277226]
[1644750970510,0.00142964,42582.0,42581.0,0.2127063]
[1644750970712,0.00142964,42582.0,42581.0,0.10638613]
[1644750970912,0.00142964,42582.0,42581.0,0.2127063]
[1644750981562,0.00136576,42582.0,42581.0,0.2127063]
[1644750984550,0.40123725,42582.0,42581.0,0.2127063]
[1644750984945,0.00136576,42582.0,42581.0,0.2127063]
[1644750989167,0.00136576,42582.0,42581.0,0.5434343]
[1644750990067,0.00136576,42582.0,42581.0,0.2127063]
[1644750990668,0.00136576,42582.0,42581.0,0.5434343]
[1644750991911,0.00136576,42582.0,42581.0,0.2536453]
[1644750993515,0.00136576,42582.0,42581.0,0.47075681]
[1644750993713,0.00136576,42582.0,42581.0,0.2536453]
[1644750994513,0.00136576,42582.0,42581.0,0.2127063]
[1644751002764,0.00136576,42582.0,42581.0,0.09275716]
[1644751003163,0.00136576,42582.0,42578.0,0.00048473]
[1644751003363,0.00136576,42582.0,42581.0,0.09275716]
[1644751008620,0.00136576,42582.0,42581.0,0.42348516]
[1644751008825,0.00136576,42582.0,42581.0,0.39710928]
[1644751009021,0.00136576,42582.0,42581.0,0.06638128]
[1644751009221,0.00136576,42582.0,42578.0,0.00048473]
[1644751009521,0.00136576,42582.0,42581.0,0.06638128]
[1644751010566,0.00136576,42582.0,42581.0,0.39710928]
[1644751011166,0.00136576,42582.0,42581.0,0.06638128]
[1644751012564,0.00136576,42582.0,42581.0,0.39710928]
[1644751012765,0.00136576,42582.0,42581.0,0.06638128]
[1644751015115,0.00136576,42582.0,42581.0,0.05639455]
[1644751015317,0.00136576,42582.0,42578.0,0.00048473]
[1644751015516,0.00136576,42582.0,42581.0,0.05639455]
[1644751020260,0.00136576,42582.0,42581.0,0.38712255]
[1644751020660,0.00136576,42582.0,42581.0,0.05639455]
[1644751022215,0.00136576,42582.0,42578.0,0.00048473]
[1644751022216,0.00136576,42582.0,42579.0,0.330728]
[1644751022416,0.00136576,42582.0,42580.0,0.03627212]
[1644751023216,0.00136576,42582.0,42581.0,0.330728]
[1644751023817,0.00136576,42582.0,42580.0,0.03627212]
[1644751024621,0.00136576,42582.0,42581.0,0.330728]
[1644751025164,0.00136576,42582.0,42580.0,0.03627212]
[1644751025563,0.00136576,42582.0,42581.0,0.330728]
[1644751025765,0.00136576,42582.0,42580.0,0.03627212]
[1644751026068,0.00136576,42582.0,42581.0,0.330728]
[1644751026266,0.00136576,42582.0,42580.0,0.03627212]
[1644751027064,0.00136576,42582.0,42581.0,0.330728]
[1644751027265,0.00174571,42582.0,42580.0,0.03627212]
[1644751027464,0.00174571,42582.0,42578.0,0.00048473]
[1644751027665,0.00174571,42582.0,42580.0,0.03627212]
[1644751029712,0.00174571,42582.0,42581.0,0.330714]
[1644751029913,0.02673496,42582.0,42580.0,0.03627212]
[1644751030113,0.00174571,42582.0,42580.0,0.03627212]
[1644751030612,0.02498945,42581.0,42580.0,0.36698612]
[1644751031216,0.02459083,42581.0,42580.0,0.36698612]
[1644751032270,0.02633545,42581.0,42580.0,0.36698612]
[1644751032470,0.00174462,42581.0,42580.0,0.36698612]
[1644751033879,0.00015859,42588.0,42583.0,0.00986582]
[1644751034076,0.22825466,42597.0,42588.0,0.85]
[1644751034281,0.015,42597.0,42593.0,0.330597]
[1644751034474,0.015,42597.0,42595.0,0.09778337]
[1644751034676,0.015,42597.0,42596.0,0.55567558]
[1644751034876,0.015,42597.0,42596.0,0.88624758]
[1644751035073,0.015,42597.0,42596.0,0.58624758]
[1644751035373,0.015,42597.0,42596.0,0.58596585]
[1644751036424,0.015,42597.0,42596.0,0.86814623]
[1644751039626,0.015,42597.0,42596.0,0.90441835]
[1644751040965,0.015,42597.0,42596.0,0.36684412]
[1644751041467,0.015,42597.0,42596.0,0.36698612]
[1644751041867,0.2064494,42597.0,42596.0,0.03627212]
[1644751042067,0.2064494,42597.0,42596.0,0.03992112]
[1644751042068,0.20883419,42597.0,42596.0,0.03992112]
[1644751042271,0.26756319,42597.0,42596.0,0.03992112]
[1644751042565,0.25256319,42597.0,42596.0,0.03992112]
[1644751042865,0.06111379,42597.0,42596.0,0.03992112]
[1644751055573,0.06111379,42597.0,42596.0,0.37063512]
[1644751055776,0.00238479,42597.0,42596.0,0.63660909]
[1644751056174,0.00238479,42597.0,42596.0,0.37063512]
[1644751056572,0.00238479,42597.0,42596.0,0.03992112]
[1644751056774,0.00238479,42597.0,42596.0,0.06059112]
[1644751056973,0.00238479,42597.0,42596.0,0.03992112]
[1644751057175,0.00238479,42597.0,42596.0,0.37063512]
[1644751057380,0.00044791,42599.0,42596.0,0.62511535]
[1644751057573,0.00044791,42599.0,42598.0,0.330697]
[1644751057774,0.00044791,42599.0,42598.0,0.330714]
[1644751057975,0.00044791,42599.0,42598.0,0.36698612]
[1644751058177,0.11178479,42600.0,42599.0,0.330714]
[1644751058377,0.11178479,42600.0,42599.0,0.83307561]
[1644751058618,0.11178479,42600.0,42599.0,0.50236161]
[1644751059018,0.10238479,42600.0,42599.0,0.25291101]
[1644751059619,0.10238479,42600.0,42598.0,0.03627212]
[1644751060024,0.10238479,42600.0,42598.0,0.03599039]
[1644751060420,0.10238479,42600.0,42599.0,0.58124591]
[1644751060722,0.10238479,42600.0,42599.0,0.24429555]
[1644751061120,0.10238479,42600.0,42599.0,0.57500955]
[1644751061319,0.10238479,42600.0,42599.0,0.24429555]
[1644751061521,0.10238479,42600.0,42599.0,0.330714]
[1644751062124,0.10238479,42600.0,42599.0,0.58510476]
[1644751062375,0.10238479,42600.0,42599.0,0.33251675]
[1644751062683,0.10238479,42600.0,42599.0,0.32244375]
[1644751062878,0.10238479,42600.0,42599.0,0.02244375]
[1644751063277,0.10238479,42600.0,42599.0,0.13587747]
[1644751064076,0.10238479,42600.0,42599.0,0.43587747]
[1644751064879,0.10238479,42600.0,42599.0,0.42895682]
[1644751066821,0.10238479,42600.0,42599.0,0.05843414]
[1644751067020,0.10238479,42600.0,42599.0,0.31249988]
[1644751067423,0.10238479,42600.0,42599.0,0.05843414]
[1644751069120,0.10238479,42600.0,42589.0,0.1182]
[1644751069121,1.05,42599.0,42589.0,0.1182]
[1644751069325,0.058732,42597.0,42583.0,0.40626582]
[1644751069522,0.28228971,42596.0,42583.0,0.40626582]
[1644751069778,0.28228971,42596.0,42584.0,0.330714]
[1644751070183,0.20403008,42592.0,42584.0,0.3975056]
[1644751070383,0.05919255,42592.0,42586.0,0.020779]
[1644751071381,0.058742,42592.0,42586.0,0.020779]
[1644751071580,0.00045055,42591.0,42586.0,0.020779]
[1644751072484,0.058742,42592.0,42586.0,0.020779]
[1644751072684,0.30258444,42591.0,42586.0,0.020779]
[1644751072895,0.46132744,42591.0,42584.0,0.330714]
[1644751073527,0.36132744,42591.0,42584.0,0.330714]
[1644751073722,0.36087815,42591.0,42584.0,0.330714]
[1644751073921,0.00044929,42590.0,42584.0,0.330714]
[1644751074921,0.058742,42592.0,42584.0,0.330714]
[1644751075121,0.0004493,42589.0,42584.0,0.330714]
[1644751075330,0.058743,42588.0,42584.0,0.330714]
[1644751075725,0.058743,42588.0,42583.0,0.00986582]
[1644751075922,0.058743,42588.0,42584.0,0.330714]
[1644751076626,0.0591923,42588.0,42584.0,0.330714]
[1644751077288,0.058743,42588.0,42584.0,0.330714]
[1644751077492,0.00044929,42588.0,42584.0,0.330714]
[1644751078492,0.0013398,42590.0,42584.0,0.330714]
[1644751078988,0.00044929,42588.0,42584.0,0.330714]
[1644751079787,0.0013398,42590.0,42584.0,0.330714]
[1644751079991,0.0004493,42588.0,42584.0,0.330714]
[1644751082125,0.00173491,42588.0,42584.0,0.330714]
[1644751085877,0.00173491,42588.0,42585.0,0.26221436]
[1644751086076,0.00173491,42588.0,42586.0,0.020784]
[1644751086472,0.00128561,42588.0,42586.0,0.020784]
[1644751087276,0.00141162,42587.0,42586.0,0.020784]
[1644751092873,0.00141162,42587.0,42586.0,0.02067861]
[1644751101574,0.00131513,42587.0,42586.0,0.02067861]
[1644751107978,0.00128561,42588.0,42587.0,1.28331926]
[1644751110881,0.00128561,42588.0,42587.0,2.52831926]
[1644751111834,8.561e-05,42588.0,42587.0,2.57831926]
[1644751112331,0.00171535,42588.0,42587.0,2.58268643]
[1644751113434,0.00171535,42588.0,42587.0,2.53268643]
[1644751113833,0.00171535,42588.0,42587.0,2.58268643]
[1644751116279,0.00171535,42588.0,42587.0,2.53268643]
[1644751117080,0.00171535,42588.0,42587.0,2.58268643]
[1644751117283,0.00171535,42588.0,42587.0,2.53268643]
[1644751117781,0.00041392,42590.0,42587.0,2.53162595]
[1644751118082,0.00041392,42590.0,42589.0,0.53772231]
[1644751118281,0.00041392,42590.0,42589.0,0.81583481]
[1644751118523,0.10190124,42600.0,42589.0,0.88496925]
[1644751118724,0.00045134,42592.0,42590.0,0.020677]